Service,Transaction No,Transaction date,Cost Centre,Account ,Beneficiary,Amount,Charity/Company Registration,
PCC,20111601,21/09/2020,Serious Violence,Grant Expenditure,Abraham Moss Warriors,"20,000.00",Co.12605978,
PCC,31091583,25/03/2021,Serious Violence,Grant Expenditure,Achieve North West Connect (Career Connect),"8,764.00",3075969,
PCC,31079349,21/08/2020,Serious Violence,Grant Expenditure,Action Together CIO,938.95,1165512,
PCC,31081143,08/10/2020,NHSE SAAS,Grant Expenditure,Action Together CIO,"10,000.00",1165512,
PCC,31087241,19/01/2021,Serious Violence,Grant Expenditure,Action Together CIO,468.35,1165512,
PCC,20111601,21/09/2020,Serious Violence,Grant Expenditure,Be the best community CIC,"10,000.00",Co.10053832,
PCC,31076558,15/07/2020,Victims of Abuse and Violence during Covid 19,Grant Expenditure,Beacon Bolton Counselling Service,"7,723.50",1181596,
PCC,31083879,25/11/2020,Victims of Abuse and Violence during Covid 19,Grant Expenditure,Beacon Bolton Counselling Service,"7,723.50",1181596,
PCC,31082695,05/11/2020,Serious Violence,Grant Expenditure,Bolton Community Development Partnership,"12,520.00",1183206,
PCC,31074383,26/05/2020,Serious Violence,Grant Expenditure,Bolton CVS,654.00,10023123,
PCC,31074868,10/06/2020,Community Safety Fund (Other),Grant Expenditure,Brake,"8,000.00",1093244,
Core GMCA,31084804,31/03/2020,Cultural and Social Impact Fund,Grant Expenditure,Brighter Sound Ltd,"2,000.00",1154803,
Core GMCA,31071723,31/03/2020,Cultural and Social Impact Fund,Grant Expenditure,Brighter Sound Ltd,"7,272.00",1154803,
Core GMCA,31091243,16/03/2021,Cultural and Social Impact Fund,Grant Expenditure,Brighter Sound Ltd,"7,272.00",1154803,
Core GMCA,31071382,25/03/2020,Cultural and Social Impact Fund,Grant Expenditure,Bury Metropolitan Arts Association,"25,000.00",701879,
Core GMCA,31084662,13/11/2020,Cultural and Social Impact Fund,Grant Expenditure,Bury Metropolitan Arts Association,"25,000.00",701879,
PCC,31076563,15/07/2020,Victims of Abuse and Violence during Covid 19,Grant Expenditure,Caribbean & African Health Network Greater Manchester,"19,230.00",Co.10845632,
PCC,31083880,25/11/2020,Victims of Abuse and Violence during Covid 19,Grant Expenditure,Caribbean & African Health Network Greater Manchester,"19,230.00",Co.10845632,
PCC,31085537,18/12/2020,Victims of Abuse and Violence during Covid 19,Grant Expenditure,Caribbean & African Health Network Greater Manchester,"35,880.00",Co.10845632,
Core GMCA,31070973,17/03/2020,Cultural and Social Impact Fund,Grant Expenditure,Cartwheel Arts,"15,000.00",519394,
Core GMCA,31090152,20/10/2020,Cultural and Social Impact Fund,Grant Expenditure,Cartwheel Arts,"15,000.00",519394,
Core GMCA,31071485,27/03/2020,Cultural and Social Impact Fund,Grant Expenditure,Centre For Chinese Contemporary Art,"17,500.00",518992,
Core GMCA,31084898,02/10/2020,Cultural and Social Impact Fund,Grant Expenditure,Centre For Chinese Contemporary Art,"17,500.00",518992,
PCC,31075955,02/07/2020,Victims of Abuse and Violence during Covid 19,Grant Expenditure,City Hearts UK,"36,480.00",1110314,
PCC,31082925,10/11/2020,Victims of Abuse and Violence during Covid 19,Grant Expenditure,City Hearts UK,"36,480.00",1110314,
PCC,31086553,13/01/2021,Victims of Abuse and Violence during Covid 19,Grant Expenditure,City Hearts UK,"13,360.00",1110314,
PCC,31087605,27/01/2021,Victims Services,Grant Expenditure,City Hearts UK,"10,000.00",1110314,
PCC,31074680,27/04/2020,Serious Violence,Grant Expenditure,Coaching Inside And Out (CIAO),"12,250.00",1153349,
PCC,20111601,21/09/2020,Serious Violence,Grant Expenditure,Collyhurst & Moston Boxing Club,"15,362.00",1186370,
PCC,20111601,21/09/2020,Serious Violence,Grant Expenditure,Common Sense Events,"3,300.00",1136981,
PCC,20111601,21/09/2020,Serious Violence,Grant Expenditure,Community for all,"20,000.00",Co.12963188,
PCC,31082690,05/11/2020,Serious Violence,Grant Expenditure,Community Horizons Global CIC,"1,080.00",Co.12227280,
PCC,31087929,04/02/2021,Serious Violence,Grant Expenditure,Community Led Initiatives CIC,"21,261.50",Co.08426120,
PCC,31078853,06/04/2020,Victims Services,Grant Expenditure,Community Security Trust,"14,058.00",1042391,
PCC,31089357,02/12/2020,Victims Services,Grant Expenditure,Community Security Trust,"14,058.00",1042391,
PCC,20111601,21/09/2020,Serious Violence,Grant Expenditure,Deeplish Community Centre,"3,805.00",1090588,
PCC,31076555,15/07/2020,Victims of Abuse and Violence during Covid 19,Grant Expenditure,DIAS Domestic Violence Centre,"48,141.00",1073769,
PCC,31082933,10/11/2020,Victims of Abuse and Violence during Covid 19,Grant Expenditure,DIAS Domestic Violence Centre,"48,141.00",1073769,
PCC,31085543,18/12/2020,Victims of Abuse and Violence during Covid 19,Grant Expenditure,DIAS Domestic Violence Centre,"44,000.00",1073769,
PCC,31077200,23/07/2020,Victims of Abuse and Violence during Covid 19,Grant Expenditure,Dimobi Children Disability Trust,"6,824.50",1170582,
PCC,31083886,25/11/2020,Victims of Abuse and Violence during Covid 19,Grant Expenditure,Dimobi Children Disability Trust,"6,824.50",1170582,
PCC,31086396,08/01/2021,Victims of Abuse and Violence during Covid 19,Grant Expenditure,Dimobi Children Disability Trust,"12,630.00",1170582,
PCC,31077206,23/07/2020,Victims of Abuse and Violence during Covid 19,Grant Expenditure,Empathy Northwest CIC,"5,000.00",Co.07964003,
PCC,31083887,25/11/2020,Victims of Abuse and Violence during Covid 19,Grant Expenditure,Empathy Northwest CIC,"5,000.00",Co.07964003,
PCC,31085540,18/12/2020,Victims of Abuse and Violence during Covid 19,Grant Expenditure,Empathy Northwest CIC,"6,000.00",Co.07964003,
PCC,31077201,23/07/2020,Victims of Abuse and Violence during Covid 19,Grant Expenditure,Endabuse CIC,"12,675.00",Co.12012956,
PCC,31083888,25/11/2020,Victims of Abuse and Violence during Covid 19,Grant Expenditure,Endabuse CIC,"12,675.00",Co.12012956,
PCC,31085541,18/12/2020,Victims of Abuse and Violence during Covid 19,Grant Expenditure,Endabuse CIC,"22,800.00",Co.12012956,
Core GMCA,31071392,25/03/2020,Cultural and Social Impact Fund,Grant Expenditure,English Folk Expo,"17,500.00",1192064,
Core GMCA,31089171,06/01/2021,Cultural and Social Impact Fund,Grant Expenditure,English Folk Expo,"17,500.00",1192064,
PCC,20111601,21/09/2020,Serious Violence,Grant Expenditure,Equal education choices,"4,110.00",1180869,
PCC,20111601,21/09/2020,Serious Violence,Grant Expenditure,Excel 2 Learn (Bolton) CIC,"11,000.00",Co.07582064,
Core GMCA,31073332,30/04/2020,Cultural and Social Impact Fund,Grant Expenditure,Greater Manchester Centre for Voluntary Organisation,"114,200.00",504542,
Core GMCA,31084785,04/12/2020,Cultural and Social Impact Fund,Grant Expenditure,Greater Manchester Centre for Voluntary Organisation,"114,200.00",504542,
Core GMCA,31073512,13/05/2020,Cultural and Social Impact Fund,Grant Expenditure,Greater Manchester Sports Partnership T/A GREATERSPORT,"87,800.00",1059115,
Core GMCA,31084792,04/12/2020,Cultural and Social Impact Fund,Grant Expenditure,Greater Manchester Sports Partnership T/A GREATERSPORT,"87,800.00",1059115,
PCC,31071731,03/04/2020,Serious Violence,Grant Expenditure,GREATERSPORT,"24,000.00",1059115,
Core GMCA,31074158,17/03/2020,Cultural and Social Impact Fund,Grant Expenditure,Halle Concerts Society,"187,292.50",223882,
Core GMCA,31074145,18/03/2020,Cultural and Social Impact Fund,Grant Expenditure,Halle Concerts Society,"187,292.50",223882,
Core GMCA,31086270,05/01/2021,Cultural and Social Impact Fund,Grant Expenditure,Halle Concerts Society,"187,292.50",223882,
Core GMCA,31086271,05/01/2021,Cultural and Social Impact Fund,Grant Expenditure,Halle Concerts Society,"187,292.50",223882,
Core GMCA,31071402,25/03/2020,Cultural and Social Impact Fund,Grant Expenditure,HOME Manchester,"68,450.00",514719,
Core GMCA,31086415,08/01/2021,Cultural and Social Impact Fund,Grant Expenditure,HOME Manchester,"34,225.00",514719,
Core GMCA,31081217,12/10/2020,Cultural and Social Impact Fund,Grant Expenditure,HOME Manchester,"34,225.00",514719,
PCC,31071486,01/04/2020,Victims Services,Grant Expenditure,Independent Choices Greater Manchester,"15,000.00",1158313,
PCC,31075954,02/07/2020,Victims of Abuse and Violence during Covid 19,Grant Expenditure,Independent Choices Greater Manchester,"6,885.50",1158313,
PCC,31080850,01/10/2020,Victims Services,Grant Expenditure,Independent Choices Greater Manchester,"15,000.00",1158313,
PCC,31082924,10/11/2020,Victims of Abuse and Violence during Covid 19,Grant Expenditure,Independent Choices Greater Manchester,"6,885.00",1158313,
PCC,31085568,18/12/2020,Victims of Abuse and Violence during Covid 19,Grant Expenditure,Independent Choices Greater Manchester,"23,370.00",1158313,
PCC,31085533,18/12/2020,Victims of Abuse and Violence during Covid 19,Grant Expenditure,Jigsaw Homes Group,"42,800.00",IP29433R,
PCC,31082697,05/11/2020,Serious Violence,Grant Expenditure,Kaalmo Welfare Trust (Kwtrust),"8,775.00",1154001,
PCC,31080152,16/09/2020,Serious Violence,Grant Expenditure,Levenshulme Youth Project,"3,772.10",1175093,
PCC,31071691,02/04/2020,Victims Services,Grant Expenditure,LGBT   Foundation,"14,790.00",1070904,
PCC,31072191,15/04/2020,Community Safety Fund (Other),Grant Expenditure,LGBT   Foundation,"42,500.00",1070904,
PCC,31071732,03/04/2020,Community Safety Fund (Other),Grant Expenditure,LGBT   Foundation,"25,000.00",1070904,
PCC,31075953,02/07/2020,Victims of Abuse and Violence during Covid 19,Grant Expenditure,LGBT   Foundation,"18,224.00",1070904,
PCC,31081010,01/10/2020,Victims Services,Grant Expenditure,LGBT   Foundation,"14,790.00",1070904,
PCC,31082923,10/11/2020,Victims of Abuse and Violence during Covid 19,Grant Expenditure,LGBT   Foundation,"18,224.00",1070904,
Core GMCA,31071346,24/03/2020,Cultural and Social Impact Fund,Grant Expenditure,Link4Life,"76,500.00",1118610,
Core GMCA,31075238,11/06/2020,Cultural and Social Impact Fund,Grant Expenditure,Link4Life,"76,500.00",1118610,
Core GMCA,31080475,23/09/2020,Cultural and Social Impact Fund,Grant Expenditure,Link4Life,"76,500.00",1118610,
Core GMCA,31081813,23/09/2020,Cultural and Social Impact Fund,Grant Expenditure,Link4Life,"76,500.00",1118610,
PCC,31074840,05/06/2020,Victims Services,Grant Expenditure,Manchester Action on Street Health,"24,506.00",1051754,
PCC,31076421,13/07/2020,Victims of Abuse and Violence during Covid 19,Grant Expenditure,Manchester Action on Street Health,"5,607.50",1051754,
PCC,31080972,05/10/2020,Victims Services,Grant Expenditure,Manchester Action on Street Health,"24,506.00",1051754,
PCC,31083878,25/11/2020,Victims of Abuse and Violence during Covid 19,Grant Expenditure,Manchester Action on Street Health,"5,607.50",1051754,
Core GMCA,31075803,18/03/2020,Cultural and Social Impact Fund,Grant Expenditure,Manchester Camerata,"27,400.00",503675,
Core GMCA,31081788,01/10/2020,Cultural and Social Impact Fund,Grant Expenditure,Manchester Camerata,"13,700.00",503675,
Core GMCA,31086272,31/12/2020,Cultural and Social Impact Fund,Grant Expenditure,Manchester Camerata,"13,700.00",503675,
PCC,20111601,21/09/2020,Serious Violence,Grant Expenditure,Manchester Congolese Organisation,"9,557.00",1142798,
Core GMCA,31071455,26/03/2020,Cultural and Social Impact Fund,Grant Expenditure,Manchester Histories,"12,500.00",1151944,
Core GMCA,31080228,16/09/2020,Cultural and Social Impact Fund,Grant Expenditure,Manchester Histories,"12,500.00",1151944,
Core GMCA,31075871,17/03/2020,Cultural and Social Impact Fund,Grant Expenditure,Manchester International Festival,"45,000.00",1113902,
Core GMCA,31079336,01/09/2020,Cultural and Social Impact Fund,Grant Expenditure,Manchester International Festival,"45,000.00",1113902,
Core GMCA,31077729,27/07/2020,Cultural and Social Impact Fund,Grant Expenditure,Manchester Jazz Festival,"1,000.00",1130000,
Core GMCA,31071429,26/03/2020,Cultural and Social Impact Fund,Grant Expenditure,Manchester Jazz Festival,"14,762.00",1130000,
Core GMCA,31087363,22/01/2021,Cultural and Social Impact Fund,Grant Expenditure,Manchester Jazz Festival,"14,762.00",1130000,
Core GMCA,31071474,01/04/2020,Cultural and Social Impact Fund,Grant Expenditure,Manchester Jewish Museum,"17,500.00",1154353,
Core GMCA,31082417,01/10/2020,Cultural and Social Impact Fund,Grant Expenditure,Manchester Jewish Museum,"17,500.00",1154353,
Core GMCA,31071204,23/03/2020,Cultural and Social Impact Fund,Grant Expenditure,Manchester Literature Festival,"20,000.00",1121276,
Core GMCA,31084659,03/11/2020,Cultural and Social Impact Fund,Grant Expenditure,Manchester Literature Festival,"20,000.00",1121276,
Core GMCA,31080724,30/03/2020,Cultural and Social Impact Fund,Grant Expenditure,Manchester Pride Ltd,"15,000.00",1117848,
Core GMCA,31087911,03/02/2021,Cultural and Social Impact Fund,Grant Expenditure,Manchester Pride Ltd,"15,000.00",1117848,
PCC,31075958,02/07/2020,Victims of Abuse and Violence during Covid 19,Grant Expenditure,Manchester Rape Crisis,"1,008.50",509771,
PCC,31080149,16/09/2020,NHSE SAAS,Grant Expenditure,Manchester Rape Crisis,"36,333.00",509771,
PCC,31082927,10/11/2020,Victims of Abuse and Violence during Covid 19,Grant Expenditure,Manchester Rape Crisis,"1,008.50",509771,
PCC,31089305,11/02/2021,Victims Services,Grant Expenditure,Manchester Rape Crisis,"11,000.00",509771,
PCC,31082691,05/11/2020,Serious Violence,Grant Expenditure,Manchester Young Community Champions CIC,"7,340.00",Co.07882119,
Core GMCA,31073047,20/03/2020,Cultural and Social Impact Fund,Grant Expenditure,Manchester Young People�s Theatre (trading as Contact),"48,500.00",508829,
Core GMCA,31080928,01/10/2020,Cultural and Social Impact Fund,Grant Expenditure,Manchester Young People�s Theatre (trading as Contact),"24,250.00",508829,
Core GMCA,31081955,01/10/2020,Cultural and Social Impact Fund,Grant Expenditure,Manchester Young People�s Theatre (trading as Contact),"25,607.50",508829,
Core GMCA,31091688,31/03/2021,Cultural and Social Impact Fund,Grant Expenditure,Manchester Young People�s Theatre (trading as Contact),"24,250.00",508829,
Core GMCA,31071203,23/03/2020,Cultural and Social Impact Fund,Grant Expenditure,MancSpirit,"22,378.09",1184128,
Core GMCA,31084663,26/10/2020,Cultural and Social Impact Fund,Grant Expenditure,MancSpirit,"22,378.09",1184128,
PCC,31077204,23/07/2020,Victims of Abuse and Violence during Covid 19,Grant Expenditure,MhIST (Mental Health Independent Support Team),"6,338.00",1130152,
PCC,31082934,10/11/2020,Victims of Abuse and Violence during Covid 19,Grant Expenditure,MhIST (Mental Health Independent Support Team),"6,338.00",1130152,
PCC,31085534,18/12/2020,Victims of Abuse and Violence during Covid 19,Grant Expenditure,MhIST (Mental Health Independent Support Team),"23,180.00",1130152,
PCC,31076566,15/07/2020,Victims of Abuse and Violence during Covid 19,Grant Expenditure,Migdal Emunah Ltd,"16,850.50",1150835,
PCC,31083884,25/11/2020,Victims of Abuse and Violence during Covid 19,Grant Expenditure,Migdal Emunah Ltd,"16,850.50",1150835,
PCC,31082694,05/11/2020,Serious Violence,Grant Expenditure,Moss Side Boxing & Athletics Association,"13,017.99",519292,
Core GMCA,31071490,27/03/2020,Cultural and Social Impact Fund,Grant Expenditure,Music Action International,"6,290.00",1136295,
Core GMCA,31091187,19/03/2021,Cultural and Social Impact Fund,Grant Expenditure,Music Action International,"6,290.00",1136295,
PCC,20111601,21/09/2020,Serious Violence,Grant Expenditure,Nesirulahi Walifathu,"8,180.00",1138290,
PCC,31075957,02/07/2020,Victims of Abuse and Violence during Covid 19,Grant Expenditure,New Step for African Community,"16,142.00",1110686,
PCC,31083054,12/11/2020,Victims of Abuse and Violence during Covid 19,Grant Expenditure,New Step for African Community,"16,142.00",1110686,
PCC,31085535,18/12/2020,Victims of Abuse and Violence during Covid 19,Grant Expenditure,New Step for African Community,"43,618.00",1110686,
PCC,31084751,03/12/2020,Victims Services,Grant Expenditure,New Step for African Community,"24,500.00",1110686,
PCC,20111601,21/09/2020,Serious Violence,Grant Expenditure,Nurturing Foundations,"13,098.00",1183616,
Core GMCA,31079464,01/10/2020,Cultural and Social Impact Fund,Grant Expenditure,Octagon Theatre Trust,"26,800.00",248833,
Core GMCA,31075172,01/04/2020,Cultural and Social Impact Fund,Grant Expenditure,Octagon Theatre Trust,"26,800.00",248833,
Core GMCA,31084701,01/01/2021,Cultural and Social Impact Fund,Grant Expenditure,Octagon Theatre Trust,"26,800.00",248833,
Core GMCA,31084651,01/07/2020,Cultural and Social Impact Fund,Grant Expenditure,Octagon Theatre Trust,"26,800.00",248833,
PCC,20111601,21/09/2020,Serious Violence,Grant Expenditure,Oldham Boxing,"15,000.00",Co.06561542,
Core GMCA,31072725,29/03/2020,Cultural and Social Impact Fund,Grant Expenditure,Oldham Coliseum Theatre Ltd,"25,607.50",508829,
Core GMCA,31086380,01/10/2020,Cultural and Social Impact Fund,Grant Expenditure,Oldham Coliseum Theatre Ltd,"25,607.50",508829,
Core GMCA,31086381,07/01/2021,Cultural and Social Impact Fund,Grant Expenditure,Oldham Coliseum Theatre Ltd,"25,607.50",508829,
Core GMCA,31087587,18/03/2020,Cultural and Social Impact Fund,Grant Expenditure,Oldham Coliseum Theatre Ltd,"25,607.50",508829,
PCC,31076559,15/07/2020,Victims of Abuse and Violence during Covid 19,Grant Expenditure,Olive Pathway,"12,137.00",1168234,
PCC,31082932,10/11/2020,Victims of Abuse and Violence during Covid 19,Grant Expenditure,Olive Pathway,"12,137.00",1168234,
PCC,31085539,18/12/2020,Victims of Abuse and Violence during Covid 19,Grant Expenditure,Olive Pathway,"20,894.66",1168234,
PCC,31071853,01/04/2020,FIM,Grant Expenditure,Partners of Prisoners and Families Support Group,"17,500.00",1048152,
PCC,31080201,17/09/2020,FIM,Grant Expenditure,Partners of Prisoners and Families Support Group,"17,500.00",1048152,
PCC,31076560,15/07/2020,Victims of Abuse and Violence during Covid 19,Grant Expenditure,Paws for Kids t/a Endeavour Project,"6,270.00",1084861,
PCC,31083883,25/11/2020,Victims of Abuse and Violence during Covid 19,Grant Expenditure,Paws for Kids t/a Endeavour Project,"6,270.00",1084861,
PCC,31085538,18/12/2020,Victims of Abuse and Violence during Covid 19,Grant Expenditure,Paws for Kids t/a Endeavour Project,"14,507.00",1084861,
PCC,31082698,05/11/2020,Serious Violence,Grant Expenditure,Pedal Further CIC,"8,500.00",Co.12467527,
Core GMCA,31071581,17/03/2020,Cultural and Social Impact Fund,Grant Expenditure,People�s History Museum,"102,242.50",295260,
Core GMCA,31075149,10/06/2020,Cultural and Social Impact Fund,Grant Expenditure,People�s History Museum,"102,242.50",295260,
Core GMCA,31079971,10/09/2020,Cultural and Social Impact Fund,Grant Expenditure,People�s History Museum,"102,242.50",295260,
Core GMCA,31085694,12/11/2020,Cultural and Social Impact Fund,Grant Expenditure,People�s History Museum,"102,242.50",295260,
Core GMCA,31091585,29/03/2021,Cultural and Social Impact Fund,Grant Expenditure,People�s History Museum,"102,242.50",295260,
PCC,31072763,22/04/2020,FIM,Grant Expenditure,Petrus,"16,644.50",510904,
PCC,31080202,17/09/2020,FIM,Grant Expenditure,Petrus,"16,644.50",510904,
PCC,31083786,25/11/2020,Youth Justice Transformation,Grant Expenditure,Positive Steps ,"50,000.00",1017247,
PCC,31076422,13/07/2020,Victims of Abuse and Violence during Covid 19,Grant Expenditure,Positive Steps Oldham,"7,649.00",1017247,
PCC,31083055,12/11/2020,Victims of Abuse and Violence during Covid 19,Grant Expenditure,Positive Steps Oldham,"7,649.00",1017247,
PCC,31085360,15/12/2020,Serious Violence,Grant Expenditure,Positive Steps Oldham,"17,700.00",1017247,
PCC,31085569,18/12/2020,Victims of Abuse and Violence during Covid 19,Grant Expenditure,Positive Steps Oldham,"15,298.00",1017247,
PCC,31089889,04/03/2021,Serious Violence,Grant Expenditure,Positive Steps Oldham,"8,674.00",1017247,
Core GMCA,31074686,09/06/2020,Cultural and Social Impact Fund,Grant Expenditure,Redated Personal Data,500.00,N/A,
Core GMCA,31074687,09/06/2020,Cultural and Social Impact Fund,Grant Expenditure,Redated Personal Data,500.00,N/A,
Core GMCA,31074688,09/06/2020,Cultural and Social Impact Fund,Grant Expenditure,Redated Personal Data,500.00,N/A,
Core GMCA,31074689,09/06/2020,Cultural and Social Impact Fund,Grant Expenditure,Redated Personal Data,500.00,N/A,
Core GMCA,31074690,09/06/2020,Cultural and Social Impact Fund,Grant Expenditure,Redated Personal Data,500.00,N/A,
Core GMCA,31074691,09/06/2020,Cultural and Social Impact Fund,Grant Expenditure,Redated Personal Data,500.00,N/A,
Core GMCA,31074692,09/06/2020,Cultural and Social Impact Fund,Grant Expenditure,Redated Personal Data,500.00,N/A,
Core GMCA,31076554,15/07/2020,Cultural and Social Impact Fund,Grant Expenditure,Redated Personal Data,500.00,N/A,
Core GMCA,31075681,25/06/2020,Cultural and Social Impact Fund,Grant Expenditure,Redated Personal Data,500.00,N/A,
Core GMCA,31075682,25/06/2020,Cultural and Social Impact Fund,Grant Expenditure,Redated Personal Data,500.00,N/A,
Core GMCA,31075683,25/06/2020,Cultural and Social Impact Fund,Grant Expenditure,Redated Personal Data,500.00,N/A,
Core GMCA,31075684,25/06/2020,Cultural and Social Impact Fund,Grant Expenditure,Redated Personal Data,500.00,N/A,
Core GMCA,31075685,25/06/2020,Cultural and Social Impact Fund,Grant Expenditure,Redated Personal Data,500.00,N/A,
Core GMCA,31074693,09/06/2020,Cultural and Social Impact Fund,Grant Expenditure,Redated Personal Data,500.00,N/A,
Core GMCA,31074694,09/06/2020,Cultural and Social Impact Fund,Grant Expenditure,Redated Personal Data,500.00,N/A,
Core GMCA,31074695,09/06/2020,Cultural and Social Impact Fund,Grant Expenditure,Redated Personal Data,500.00,N/A,
Core GMCA,31074696,09/06/2020,Cultural and Social Impact Fund,Grant Expenditure,Redated Personal Data,500.00,N/A,
Core GMCA,31074697,09/06/2020,Cultural and Social Impact Fund,Grant Expenditure,Redated Personal Data,500.00,N/A,
Core GMCA,31074698,09/06/2020,Cultural and Social Impact Fund,Grant Expenditure,Redated Personal Data,500.00,N/A,
Core GMCA,31074699,09/06/2020,Cultural and Social Impact Fund,Grant Expenditure,Redated Personal Data,500.00,N/A,
Core GMCA,31074700,09/06/2020,Cultural and Social Impact Fund,Grant Expenditure,Redated Personal Data,500.00,N/A,
Core GMCA,31074701,09/06/2020,Cultural and Social Impact Fund,Grant Expenditure,Redated Personal Data,500.00,N/A,
Core GMCA,31074702,09/06/2020,Cultural and Social Impact Fund,Grant Expenditure,Redated Personal Data,500.00,N/A,
Core GMCA,31074703,09/06/2020,Cultural and Social Impact Fund,Grant Expenditure,Redated Personal Data,500.00,N/A,
Core GMCA,31074704,09/06/2020,Cultural and Social Impact Fund,Grant Expenditure,Redated Personal Data,500.00,N/A,
Core GMCA,31074705,09/06/2020,Cultural and Social Impact Fund,Grant Expenditure,Redated Personal Data,500.00,N/A,
Core GMCA,31074706,09/06/2020,Cultural and Social Impact Fund,Grant Expenditure,Redated Personal Data,500.00,N/A,
Core GMCA,31074707,09/06/2020,Cultural and Social Impact Fund,Grant Expenditure,Redated Personal Data,500.00,N/A,
Core GMCA,31074708,09/06/2020,Cultural and Social Impact Fund,Grant Expenditure,Redated Personal Data,500.00,N/A,
Core GMCA,31074709,09/06/2020,Cultural and Social Impact Fund,Grant Expenditure,Redated Personal Data,500.00,N/A,
Core GMCA,31074710,09/06/2020,Cultural and Social Impact Fund,Grant Expenditure,Redated Personal Data,500.00,N/A,
Core GMCA,31074711,09/06/2020,Cultural and Social Impact Fund,Grant Expenditure,Redated Personal Data,500.00,N/A,
Core GMCA,31074712,09/06/2020,Cultural and Social Impact Fund,Grant Expenditure,Redated Personal Data,500.00,N/A,
Core GMCA,31074713,09/06/2020,Cultural and Social Impact Fund,Grant Expenditure,Redated Personal Data,500.00,N/A,
Core GMCA,31074714,09/06/2020,Cultural and Social Impact Fund,Grant Expenditure,Redated Personal Data,500.00,N/A,
Core GMCA,31074715,09/06/2020,Cultural and Social Impact Fund,Grant Expenditure,Redated Personal Data,500.00,N/A,
Core GMCA,31074716,09/06/2020,Cultural and Social Impact Fund,Grant Expenditure,Redated Personal Data,500.00,N/A,
Core GMCA,31074717,09/06/2020,Cultural and Social Impact Fund,Grant Expenditure,Redated Personal Data,500.00,N/A,
Core GMCA,31074718,09/06/2020,Cultural and Social Impact Fund,Grant Expenditure,Redated Personal Data,500.00,N/A,
Core GMCA,31074719,09/06/2020,Cultural and Social Impact Fund,Grant Expenditure,Redated Personal Data,500.00,N/A,
Core GMCA,31074720,09/06/2020,Cultural and Social Impact Fund,Grant Expenditure,Redated Personal Data,500.00,N/A,
Core GMCA,31074721,09/06/2020,Cultural and Social Impact Fund,Grant Expenditure,Redated Personal Data,500.00,N/A,
Core GMCA,31074722,09/06/2020,Cultural and Social Impact Fund,Grant Expenditure,Redated Personal Data,500.00,N/A,
Core GMCA,31075317,16/06/2020,Cultural and Social Impact Fund,Grant Expenditure,Redated Personal Data,500.00,N/A,
Core GMCA,31075318,16/06/2020,Cultural and Social Impact Fund,Grant Expenditure,Redated Personal Data,500.00,N/A,
Core GMCA,31075319,16/06/2020,Cultural and Social Impact Fund,Grant Expenditure,Redated Personal Data,500.00,N/A,
Core GMCA,31075320,16/06/2020,Cultural and Social Impact Fund,Grant Expenditure,Redated Personal Data,500.00,N/A,
Core GMCA,31075321,16/06/2020,Cultural and Social Impact Fund,Grant Expenditure,Redated Personal Data,500.00,N/A,
Core GMCA,31075322,16/06/2020,Cultural and Social Impact Fund,Grant Expenditure,Redated Personal Data,500.00,N/A,
Core GMCA,31075323,16/06/2020,Cultural and Social Impact Fund,Grant Expenditure,Redated Personal Data,500.00,N/A,
Core GMCA,31075324,16/06/2020,Cultural and Social Impact Fund,Grant Expenditure,Redated Personal Data,500.00,N/A,
Core GMCA,31075325,16/06/2020,Cultural and Social Impact Fund,Grant Expenditure,Redated Personal Data,500.00,N/A,
Core GMCA,31075326,16/06/2020,Cultural and Social Impact Fund,Grant Expenditure,Redated Personal Data,500.00,N/A,
Core GMCA,31075327,16/06/2020,Cultural and Social Impact Fund,Grant Expenditure,Redated Personal Data,500.00,N/A,
Core GMCA,31075328,16/06/2020,Cultural and Social Impact Fund,Grant Expenditure,Redated Personal Data,500.00,N/A,
Core GMCA,31081327,14/10/2020,Cultural and Social Impact Fund,Grant Expenditure,Redated Personal Data,500.00,N/A,
Core GMCA,31081328,14/10/2020,Cultural and Social Impact Fund,Grant Expenditure,Redated Personal Data,500.00,N/A,
Core GMCA,31088399,11/02/2021,Cultural and Social Impact Fund,Grant Expenditure,Robert F. Kennedy Human Rights UK Limited,"30,000.00",118174,
PCC,31076564,15/07/2020,Victims of Abuse and Violence during Covid 19,Grant Expenditure,Rochdale Connections Trust,"15,151.00",1074736,
PCC,31082931,10/11/2020,Victims of Abuse and Violence during Covid 19,Grant Expenditure,Rochdale Connections Trust,"15,151.00",1074736,
PCC,31085570,18/12/2020,Victims of Abuse and Violence during Covid 19,Grant Expenditure,Rochdale Connections Trust,"31,026.71",1074736,
PCC,31076556,15/07/2020,Victims of Abuse and Violence during Covid 19,Grant Expenditure,Rochdale Women�s Welfare Association,"3,945.00",1113487,
PCC,31083882,25/11/2020,Victims of Abuse and Violence during Covid 19,Grant Expenditure,Rochdale Women�s Welfare Association,"3,945.00",1113487,
Core GMCA,31071574,30/03/2020,Cultural and Social Impact Fund,Grant Expenditure,Royal Exchange Theatre,"109,670.00",255242,
Core GMCA,31090786,14/10/2020,Cultural and Social Impact Fund,Grant Expenditure,Royal Exchange Theatre,"54,835.00",255242,
Core GMCA,31090788,14/10/2020,Cultural and Social Impact Fund,Grant Expenditure,Royal Exchange Theatre,"54,835.00",255242,
PCC,31076557,15/07/2020,Victims of Abuse and Violence during Covid 19,Grant Expenditure,SafeNet Domestic Abuse Services,"3,001.00",1092643,
PCC,31082930,10/11/2020,Victims of Abuse and Violence during Covid 19,Grant Expenditure,SafeNet Domestic Abuse Services,"3,001.00",1092643,
PCC,31077203,23/07/2020,Victims of Abuse and Violence during Covid 19,Grant Expenditure,Safety4Sisters North West,"9,250.00",12095618,
PCC,31083890,25/11/2020,Victims of Abuse and Violence during Covid 19,Grant Expenditure,Safety4Sisters North West,"9,250.00",12095618,
PCC,31086217,16/12/2020,Serious Violence,Grant Expenditure,Salford Community and Voluntary Services,500.00,519361,
PCC,31072397,15/04/2020,FIM,Grant Expenditure,Salford Foundation Ltd,"17,676.10",1002482,
PCC,31076420,13/07/2020,Victims of Abuse and Violence during Covid 19,Grant Expenditure,Salford Foundation Ltd,"10,000.50",1002482,
PCC,31080203,17/09/2020,FIM,Grant Expenditure,Salford Foundation Ltd,"17,676.10",1002482,
PCC,31083056,12/11/2020,Victims of Abuse and Violence during Covid 19,Grant Expenditure,Salford Foundation Ltd,"10,000.50",1002482,
PCC,31085566,18/12/2020,Victims of Abuse and Violence during Covid 19,Grant Expenditure,Salford Foundation Ltd,"19,228.00",1002482,
PCC,31077028,20/07/2020,Victims of Abuse and Violence during Covid 19,Grant Expenditure,Salford Women�s Aid,"15,557.50",1089851,
PCC,31083885,25/11/2020,Victims of Abuse and Violence during Covid 19,Grant Expenditure,Salford Women�s Aid,"15,557.50",1089851,
PCC,31085572,18/12/2020,Victims of Abuse and Violence during Covid 19,Grant Expenditure,Salford Women�s Aid,"25,080.00",1089851,
PCC,31082696,05/11/2020,Serious Violence,Grant Expenditure,Sovereign House Gh,"11,937.00",1168568,
PCC,31076565,15/07/2020,Victims of Abuse and Violence during Covid 19,Grant Expenditure,Stockport Without Abuse,"2,869.00",1079291,
PCC,31082928,10/11/2020,Victims of Abuse and Violence during Covid 19,Grant Expenditure,Stockport Without Abuse,"2,869.00",1079291,
PCC,31085542,18/12/2020,Victims of Abuse and Violence during Covid 19,Grant Expenditure,Stockport Without Abuse,"16,000.00",1079291,
PCC,31072433,16/04/2020,NHSE SAAS,Grant Expenditure,Stockport Womens Centre,"90,000.00",1119969,
PCC,31072066,08/04/2020,FIM,Grant Expenditure,Stockport Womens Centre,"116,894.80",1119969,
PCC,31080206,17/09/2020,FIM,Grant Expenditure,Stockport Womens Centre,"116,894.80",1119969,
PCC,31085564,18/12/2020,Victims of Abuse and Violence during Covid 19,Grant Expenditure,Stockport Womens Centre,500.00,1119969,
PCC,31089055,08/02/2021,Serious Violence,Grant Expenditure,Street Doctors Ltd,"8,250.00",1150925,
PCC,31082484,30/10/2020,Serious Violence,Grant Expenditure,STREETGAMES UK,"49,000.00",1113542,
PCC,31077544,01/04/2020,Victims Services,Grant Expenditure,Survivors Manchester,"40,976.00",1144941,
PCC,31075956,02/07/2020,Victims of Abuse and Violence during Covid 19,Grant Expenditure,Survivors Manchester,"10,053.00",1144941,
PCC,31078034,08/08/2020,Victims Services,Grant Expenditure,Survivors Manchester,"30,000.00",1144941,
PCC,31080151,16/09/2020,NHSE SAAS,Grant Expenditure,Survivors Manchester,"36,333.00",1144941,
PCC,31082926,10/11/2020,Victims of Abuse and Violence during Covid 19,Grant Expenditure,Survivors Manchester,"10,053.00",1144941,
PCC,31089182,20/02/2021,Victims Services,Grant Expenditure,Survivors Manchester,"40,976.00",1144941,
PCC,20111601,21/09/2020,Serious Violence,Grant Expenditure,The Flowhesion Foundation,"6,720.00",1175170,
Core GMCA,31076049,17/03/2020,Cultural and Social Impact Fund,Grant Expenditure,The Lowry Centre Trust,"47,500.00",1053962,
Core GMCA,31076047,09/01/2020,Cultural and Social Impact Fund,Grant Expenditure,The Lowry Centre Trust,"47,500.00",1053962,
Core GMCA,31076048,01/01/2020,Cultural and Social Impact Fund,Grant Expenditure,The Lowry Centre Trust,"47,500.00",1053962,
Core GMCA,31087257,20/01/2021,Cultural and Social Impact Fund,Grant Expenditure,The Lowry Centre Trust,"47,500.00",1053962,
Core GMCA,31087258,20/01/2021,Cultural and Social Impact Fund,Grant Expenditure,The Lowry Centre Trust,"47,500.00",1053962,
Core GMCA,31087259,20/01/2021,Cultural and Social Impact Fund,Grant Expenditure,The Lowry Centre Trust,"47,500.00",1053962,
PCC,31076562,15/07/2020,Victims of Abuse and Violence during Covid 19,Grant Expenditure,The Pankhurst Trust (incorporating Manchester Women�s Aid),"19,102.50",1126433,
PCC,31083881,25/11/2020,Victims of Abuse and Violence during Covid 19,Grant Expenditure,The Pankhurst Trust (incorporating Manchester Women�s Aid),"19,102.50",1126433,
PCC,31085571,18/12/2020,Victims of Abuse and Violence during Covid 19,Grant Expenditure,The Pankhurst Trust (incorporating Manchester Women�s Aid),"24,716.00",1126433,
PCC,20111601,21/09/2020,Serious Violence,Grant Expenditure,Tough Cookies Education,"11,350.00",Co.09247760,
PCC,31072958,01/04/2020,Victims Services,Grant Expenditure,Trafford Rape Crisis,"11,250.00",1153102,
PCC,31080150,16/09/2020,NHSE SAAS,Grant Expenditure,Trafford Rape Crisis,"36,333.00",1153102,
PCC,31071651,01/04/2020,Victims Services,Grant Expenditure,Trafford Rape Crisis,"11,250.00",1153102,
PCC,20111601,21/09/2020,Serious Violence,Grant Expenditure,Urban Fitness Collective,"28,000.00",Co.09626499,
PCC,31072437,15/04/2020,FIM,Grant Expenditure,Urban Outreach (Bolton),"17,466.00",1044203,
PCC,31080199,17/09/2020,FIM,Grant Expenditure,Urban Outreach (Bolton),"17,466.00",1044203,
Core GMCA,31071387,17/03/2020,Cultural and Social Impact Fund,Grant Expenditure,Walk the Plank,"20,000.00",1046077,
Core GMCA,31085346,15/12/2020,Cultural and Social Impact Fund,Grant Expenditure,Walk the Plank,"20,000.00",1046077,
Core GMCA,31073259,05/05/2020,Cultural and Social Impact Fund,Grant Expenditure,Water Adventure Centre,"20,500.00",508340,
Core GMCA,31085028,07/12/2020,Cultural and Social Impact Fund,Grant Expenditure,Water Adventure Centre,"20,550.00",508340,
PCC,31072438,01/04/2020,FIM,Grant Expenditure,Women for Well Women,"15,000.00",1041937,
PCC,31080200,17/09/2020,FIM,Grant Expenditure,Women for Well Women,"15,000.00",1041937,
PCC,31076547,23/04/2020,FIM,Grant Expenditure,Women In Prison,"32,817.00",1118727,
PCC,31080204,17/09/2020,FIM,Grant Expenditure,Women In Prison,"32,817.00",1118727,
PCC,31074173,01/04/2020,FIM,Grant Expenditure,Women of Worth,"16,000.00",1169976,
PCC,31080205,17/09/2020,FIM,Grant Expenditure,Women of Worth,"16,000.00",1169976,
PCC,31083036,11/11/2020,Serious Violence,Grant Expenditure,Young Manchester,"20,000.00",1166873,
Core GMCA,31071426,01/04/2020,Cultural and Social Impact Fund,Grant Expenditure,Zion Arts Centre Ltd T/A Z-Arts,"24,875.00",1093556,
Core GMCA,31088407,31/01/2021,Cultural and Social Impact Fund,Grant Expenditure,Zion Arts Centre Ltd T/A Z-Arts,"24,875.00",1093556,
